bitfinex/quotes_BTCUSD_20220207
["timestamp","ask_amount","ask_price","bid_price","bid_amount"]
[1644255274521,0.26458294,43971.0,43965.0,0.00054097]
[1644255274722,0.3,43970.0,43965.0,0.00054097]
[1644255274924,0.8,43968.0,43959.0,0.01850536]
[1644255275221,0.8,43968.0,43943.0,0.19189765]
[1644255275222,0.22818834,43951.0,43943.0,0.19189765]
[1644255275421,0.07107937,43954.0,43942.0,0.41485159]
[1644255275719,0.0458,43957.0,43943.0,0.374295]
[1644255275720,0.20237357,43948.0,43943.0,0.374295]
[1644255275919,0.0458,43957.0,43944.0,0.25666668]
[1644255276120,0.0458,43957.0,43945.0,0.324295]
[1644255276320,0.23924325,43956.0,43945.0,0.374295]
[1644255276519,0.23924325,43956.0,43945.0,0.369295]
[1644255276719,0.07675957,43954.0,43945.0,0.369295]
[1644255276918,0.07675957,43954.0,43945.0,0.319295]
[1644255276919,0.26432393,43953.0,43945.0,0.319295]
[1644255277279,0.32123493,43953.0,43942.0,0.22295394]
[1644255277471,0.32123493,43953.0,43946.0,0.24244832]
[1644255277869,0.48432393,43953.0,43942.0,0.22295394]
[1644255278070,0.48432393,43953.0,43947.0,0.00054119]
[1644255278670,0.48432393,43953.0,43948.0,0.05]
[1644255278671,0.22,43953.0,43948.0,0.05]
[1644255279072,0.22,43953.0,43947.0,0.00054119]
[1644255279271,0.22,43953.0,43943.0,0.324291]
[1644255279574,0.22,43953.0,43952.0,0.23532397]
[1644255279973,0.22,43953.0,43948.0,0.00073164]
[1644255280173,0.06629489,43951.0,43948.0,0.00073164]
[1644255280373,0.22,43953.0,43945.0,0.0569086]
[1644255280572,0.22,43953.0,43948.0,0.00073164]
[1644255281219,0.4619723,43953.0,43948.0,0.00073164]
[1644255281421,0.05,43949.0,43941.0,0.53999775]
[1644255282019,0.05,43952.0,43941.0,0.53999775]
[1644255282222,0.06800659,43952.0,43941.0,0.65381075]
[1644255282424,0.06800659,43952.0,43945.0,0.23163077]
[1644255282920,0.06800659,43952.0,43946.0,0.0005408]
[1644255283821,0.06800659,43952.0,43948.0,0.20304308]
[1644255284023,0.01800659,43952.0,43949.0,0.3]
[1644255284224,0.01800659,43952.0,43948.0,0.25304308]
[1644255284225,0.03989083,43952.0,43948.0,0.25304308]
[1644255284422,0.03989083,43952.0,43949.0,0.324291]
[1644255284423,0.02188424,43952.0,43949.0,0.324291]
[1644255285466,0.02188424,43952.0,43948.0,0.20304308]
[1644255285865,0.02188424,43952.0,43948.0,0.25304308]
[1644255286565,0.22,43953.0,43948.0,0.20304308]
[1644255287573,0.08193208,43952.0,43947.0,0.05690484]
[1644255288516,0.05,43951.0,43947.0,0.05690484]
[1644255288717,0.08193208,43952.0,43947.0,0.05690484]
[1644255289317,0.28827785,43953.0,43947.0,0.05690484]
[1644255290018,0.23800397,43953.0,43947.0,0.05690484]
[1644255290222,0.23800397,43953.0,43950.0,0.20933533]
[1644255290418,0.25677128,43953.0,43950.0,0.20933533]
[1644255290618,0.23849343,43953.0,43950.0,0.20933533]
[1644255291120,0.23849343,43953.0,43947.0,0.05690484]
[1644255291319,0.23849343,43953.0,43945.0,0.38853877]
[1644255291550,0.28849343,43953.0,43946.0,0.00073079]
[1644255292120,0.28849343,43953.0,43948.0,0.20878984]
[1644255292368,0.3081506,43953.0,43948.0,0.20878984]
[1644255292567,0.28938329,43953.0,43948.0,0.20878984]
[1644255293770,0.28938329,43953.0,43946.0,0.00073078]
[1644255294569,0.26972612,43953.0,43946.0,0.00073078]
[1644255294768,0.26972612,43953.0,43945.0,0.33853877]
[1644255294969,0.26972612,43953.0,43946.0,0.00073078]
[1644255295570,0.06972612,43953.0,43946.0,0.00073078]
[1644255296018,0.23676627,43950.0,43947.0,0.324291]
[1644255296218,0.06972612,43953.0,43947.0,0.324291]
[1644255296418,0.08944981,43953.0,43946.0,0.00073078]
[1644255297219,0.08944981,43953.0,43945.0,0.28853877]
[1644255297420,0.26706268,43952.0,43946.0,0.00073078]
[1644255298420,0.28707143,43952.0,43945.0,0.28853877]
[1644255298721,0.02000875,43952.0,43947.0,0.056902]
[1644255298920,0.02000875,43952.0,43948.0,0.05690197]
[1644255299866,0.02000875,43952.0,43948.0,0.28821263]
[1644255300465,0.02000875,43952.0,43948.0,0.27321263]
[1644255300668,0.06972612,43953.0,43948.0,0.27321263]
[1644255301068,0.00063683,43959.0,43955.0,0.26935026]
[1644255301271,0.324291,43958.0,43955.0,0.26935026]
[1644255301466,0.00063683,43959.0,43955.0,0.26935026]
[1644255301665,0.00063683,43959.0,43948.0,0.32321263]
[1644255302064,0.23735445,43960.0,43948.0,0.32321263]
[1644255302265,0.25237891,43953.0,43948.0,0.23131066]
[1644255302465,0.00063688,43959.0,43949.0,0.324291]
[1644255302665,0.23513219,43958.0,43949.0,0.19553235]
[1644255303520,0.20260392,43956.0,43948.0,0.24806013]
[1644255304117,0.07236293,43949.0,43948.0,0.24806013]
[1644255304319,0.056913,43958.0,43948.0,0.51212662]
[1644255304320,0.32082559,43958.0,43948.0,0.51212662]
[1644255304618,0.21822616,43958.0,43948.0,0.49037715]
[1644255305420,0.07113674,43951.0,43948.0,0.22631066]
[1644255305822,0.25542609,43957.0,43948.0,0.22631066]
[1644255306822,0.56230927,43957.0,43948.0,0.22631066]
[1644255307121,0.25542609,43957.0,43948.0,0.22631066]
[1644255307370,0.35042609,43957.0,43948.0,0.22631066]
[1644255308171,0.07190888,43953.0,43948.0,0.22631066]
[1644255308573,0.07190888,43953.0,43946.0,0.22674266]
[1644255308774,0.06190888,43953.0,43946.0,0.22674266]
[1644255309273,0.2826105,43957.0,43948.0,0.05]
[1644255309475,0.2826105,43957.0,43946.0,0.22674266]
[1644255310074,0.2826105,43957.0,43944.0,0.78649213]
[1644255310274,0.06472189,43952.0,43948.0,0.26340675]
[1644255310474,0.06472189,43952.0,43944.0,0.5052]
[1644255310673,0.05972189,43952.0,43944.0,0.5052]
[1644255311156,0.05972189,43952.0,43944.0,0.71779731]
[1644255311757,0.05972189,43952.0,43946.0,0.00072962]
[1644255312159,0.72531829,43956.0,43946.0,0.00072962]
[1644255312359,0.72531829,43956.0,43950.0,0.2650909]
[1644255312558,0.324291,43955.0,43950.0,0.2650909]
[1644255312759,0.34294822,43955.0,43950.0,0.2650909]
[1644255312959,0.34294822,43955.0,43950.0,0.2550909]
[1644255313160,0.34294822,43955.0,43951.0,0.05]
[1644255313161,0.01865722,43955.0,43951.0,0.05]
[1644255313359,0.01865722,43955.0,43952.0,0.324291]
[1644255313561,0.01865722,43955.0,43954.0,0.23214488]
[1644255313959,0.07116869,43954.0,43950.0,0.2550909]
[1644255314873,0.35805354,43958.0,43950.0,0.2550909]
[1644255315073,0.35805354,43958.0,43950.0,0.31199391]
[1644255315275,0.21285934,43956.0,43950.0,0.2550909]
[1644255315673,0.00063583,43959.0,43950.0,0.2550909]
[1644255315877,0.00063583,43959.0,43958.0,0.05]
[1644255316178,0.00063583,43959.0,43958.0,0.420091]
[1644255316375,0.01881687,43964.0,43958.0,0.470091]
[1644255316576,0.25793365,43969.0,43959.0,0.58916566]
[1644255316775,0.25793365,43969.0,43963.0,0.26326217]
[1644255316776,0.35808607,43967.0,43963.0,0.26326217]
[1644255316979,0.35808607,43967.0,43960.0,0.0458]
[1644255317675,0.35554293,43967.0,43960.0,0.0458]
[1644255317975,0.06599351,43966.0,43960.0,0.0458]
[1644255318522,0.06599351,43966.0,43960.0,0.10269588]
[1644255320323,0.0006354,43965.0,43960.0,0.10269588]
[1644255320523,0.0006354,43965.0,43961.0,0.324291]
[1644255320926,0.0006354,43965.0,43963.0,0.05]
[1644255321125,0.0006354,43965.0,43964.0,0.59427548]
[1644255321327,0.02023084,43973.0,43964.0,0.0958]
[1644255321527,0.02277207,43973.0,43967.0,0.05]
[1644255321724,0.26341853,43972.0,43967.0,0.05]
[1644255321923,0.51947251,43970.0,43967.0,0.05]
[1644255322124,0.51947251,43970.0,43965.0,0.05688568]
[1644255322372,0.0632957,43966.0,43965.0,0.10268568]
[1644255322572,0.0632957,43966.0,43965.0,0.15268568]
[1644255322773,0.06069675,43966.0,43965.0,0.10268568]
[1644255322970,0.31878808,43970.0,43965.0,0.47697668]
[1644255323171,0.31878808,43970.0,43966.0,0.05]
[1644255323572,0.31878808,43970.0,43965.0,0.10268568]
[1644255323770,0.31815268,43970.0,43965.0,0.10268568]
[1644255323974,0.55592402,43970.0,43965.0,0.10268568]
[1644255324571,0.08452727,43969.0,43965.0,0.10268568]
[1644255325372,0.08452727,43969.0,43966.0,0.05]
[1644255325772,0.0006354,43970.0,43965.0,0.20956868]
[1644255326018,0.03454962,43975.0,43965.0,0.27333078]
[1644255326219,0.0006354,43970.0,43967.0,0.21360113]
[1644255326622,0.0006354,43970.0,43965.0,0.27333078]
[1644255326821,0.0006354,43970.0,43965.0,0.0458]
[1644255327021,0.06388869,43969.0,43962.0,0.113764]
[1644255327220,0.06388869,43969.0,43962.0,0.163764]
[1644255327420,0.06388869,43969.0,43962.0,0.113764]
[1644255327822,0.47492668,43963.0,43962.0,0.324291]
[1644255328122,0.47492668,43963.0,43961.0,0.0209658]
[1644255328123,0.07521509,43962.0,43961.0,0.0209658]
[1644255328522,0.04922324,43962.0,43961.0,0.0209658]
[1644255328724,0.04922324,43962.0,43957.0,0.0195784]
[1644255328922,0.04922324,43962.0,43958.0,0.324291]
[1644255329787,0.26965275,43967.0,43957.0,0.0764724]
[1644255329975,0.0006354,43962.0,43961.0,0.23228243]
[1644255330174,0.0006354,43962.0,43961.0,0.55657343]
[1644255330974,0.24798826,43969.0,43961.0,0.55657343]
[1644255331175,0.20602298,43969.0,43961.0,0.23228243]
[1644255331376,0.06899042,43966.0,43961.0,0.23228243]
[1644255331795,0.20208248,43968.0,43961.0,0.23228243]
[1644255331975,0.20208248,43968.0,43961.0,0.28228243]
[1644255332375,0.20208248,43968.0,43961.0,0.23228243]
[1644255332775,0.06700971,43963.0,43958.0,0.40549935]
[1644255332975,0.06700971,43963.0,43959.0,0.381182]
[1644255333376,0.06700971,43963.0,43959.0,0.324291]
[1644255333629,0.06700971,43963.0,43955.0,0.0215899]
[1644255333820,0.26282963,43956.0,43955.0,0.0215899]
[1644255334018,0.33207617,43956.0,43955.0,0.0215899]
[1644255334522,0.0458,43966.0,43955.0,0.0215899]
[1644255334718,0.01900369,43964.0,43954.0,0.3]
[1644255334918,0.01900369,43964.0,43953.0,0.0005389]
[1644255335119,0.01900369,43964.0,43953.0,0.0505389]
[1644255335519,0.06608459,43955.0,43953.0,0.0005389]
[1644255335718,0.06608459,43955.0,43954.0,0.324291]
[1644255335919,0.26246072,43961.0,43954.0,0.32502007]
[1644255336119,0.26246072,43961.0,43954.0,0.00072907]
[1644255336720,0.26246072,43961.0,43956.0,0.05]
[1644255336918,0.324291,43960.0,43953.0,0.19095285]
[1644255337120,0.26246072,43961.0,43950.0,0.05]
[1644255337121,0.07596033,43959.0,43954.0,0.00069349]
[1644255338069,0.07596033,43959.0,43951.0,0.25888794]
[1644255338270,0.07596033,43959.0,43954.0,0.00069348]
[1644255339271,0.07596033,43959.0,43956.0,0.24907702]
[1644255339674,0.07596033,43959.0,43954.0,0.00069348]
[1644255339872,0.07596033,43959.0,43954.0,0.05069348]
[1644255340272,0.15912807,43962.0,43954.0,0.00069348]
[1644255340473,0.15912807,43962.0,43952.0,0.22255554]
[1644255340673,0.08305571,43957.0,43954.0,0.00069348]
[1644255341020,0.07805571,43957.0,43954.0,0.00069348]
[1644255341419,0.11603307,43962.0,43954.0,0.00069348]
[1644255341623,0.05912807,43962.0,43953.0,0.19967117]
[1644255341819,0.05912807,43962.0,43953.0,0.20036985]
[1644255342620,0.08017349,43957.0,43953.0,0.20036985]
[1644255342819,0.08017349,43957.0,43954.0,0.324291]
[1644255343024,0.08017349,43957.0,43954.0,0.32498968]
[1644255343820,0.08017349,43957.0,43954.0,0.37498968]
[1644255344021,0.33680779,43955.0,43951.0,0.0194637]
[1644255344222,0.33680779,43955.0,43953.0,0.00069868]
[1644255344223,0.35,43954.0,43953.0,0.00069868]
[1644255344530,0.870091,43954.0,43953.0,0.00069868]
[1644255344783,0.920091,43954.0,43953.0,0.00069868]
[1644255344974,1.3142513,43954.0,43953.0,0.00069868]
[1644255345173,1.3211683,43954.0,43953.0,0.00069868]
[1644255345374,0.29985255,43941.0,43939.0,0.00026209]
[1644255345574,0.06557497,43942.0,43938.0,0.2492128]
[1644255345773,0.06557497,43942.0,43938.0,0.24895071]
[1644255346175,0.06557497,43942.0,43935.0,0.24229486]
[1644255346176,0.056926,43941.0,43937.0,0.00026209]
[1644255346473,0.056926,43941.0,43936.0,0.05026209]
[1644255346690,0.056926,43941.0,43937.0,0.32498912]
[1644255346876,0.06557497,43942.0,43937.0,0.32498912]
[1644255347173,0.06557497,43942.0,43937.0,0.32525121]
[1644255347380,0.056927,43941.0,43937.0,0.00096021]
[1644255347676,0.056927,43941.0,43933.0,0.00026209]
[1644255347875,0.056927,43941.0,43932.0,0.00026209]
[1644255347876,0.324291,43940.0,43932.0,0.00026209]
[1644255348074,0.056927,43941.0,43929.0,0.00026209]
[1644255348272,0.113879,43939.0,43928.0,0.00026209]
[1644255348529,0.08493121,43933.0,43930.0,0.25326607]
[1644255348727,0.08493121,43933.0,43931.0,0.02026209]
[1644255348929,0.1458,43942.0,43931.0,0.02]
[1644255349128,0.1458,43942.0,43931.0,0.07]
[1644255349327,0.1458,43942.0,43931.0,0.07026209]
[1644255349930,0.51570154,43941.0,43933.0,0.24184099]
[1644255350231,0.31732483,43941.0,43937.0,0.25120786]
[1644255350434,0.31732483,43941.0,43933.0,0.24184099]
[1644255350435,0.05,43937.0,43934.0,0.00026209]
[1644255350628,0.5,43938.0,43933.0,0.00095979]
[1644255350831,0.05,43937.0,43933.0,0.0506977]
[1644255351429,0.05,43937.0,43933.0,0.25590162]
[1644255351628,0.26644153,43937.0,43933.0,0.25659933]
[1644255351829,0.32337153,43937.0,43933.0,0.25659933]
[1644255352027,0.32337153,43937.0,43933.0,0.20659933]
[1644255352288,0.32337153,43937.0,43933.0,0.00069771]
[1644255352483,0.374291,43936.0,43932.0,0.00026209]
[1644255352682,0.324291,43935.0,43933.0,0.00070552]
[1644255353080,0.324291,43934.0,43933.0,0.00070552]
[1644255353483,0.63733733,43934.0,43933.0,0.00070552]
[1644255353680,0.63733733,43934.0,43931.0,0.02026209]
[1644255353880,0.63733733,43934.0,43931.0,0.02]
[1644255354081,0.08500094,43932.0,43931.0,0.02]
[1644255354283,0.26644153,43937.0,43931.0,0.02]
[1644255354482,0.05,43934.0,43933.0,0.05]
[1644255354681,0.26644153,43937.0,43933.0,0.05]
[1644255354682,0.01907506,43935.0,43933.0,0.05]
[1644255355282,0.01907506,43935.0,43933.0,0.18989495]
[1644255356226,0.01907506,43935.0,43934.0,0.05]
[1644255356826,0.55,43937.0,43934.0,0.05]
[1644255357630,0.55,43937.0,43933.0,0.1908849]
[1644255357828,0.05,43937.0,43933.0,0.19062281]
[1644255358528,0.056929,43938.0,43935.0,0.05]
[1644255358728,0.05172814,43938.0,43934.0,0.00026209]
[1644255358927,0.05172814,43938.0,43933.0,0.1908849]
[1644255359130,0.05172814,43938.0,43933.0,0.00072786]
[1644255359131,0.324291,43937.0,43933.0,0.00072786]
[1644255359330,0.324291,43935.0,43933.0,0.00072786]
[1644255359530,0.381227,43935.0,43933.0,0.00072786]
[1644255359780,0.09157597,43939.0,43934.0,0.05]
[1644255359781,0.01936595,43939.0,43934.0,0.05]
[1644255360078,0.01936595,43939.0,43938.0,0.05]
[1644255360287,0.01936595,43939.0,43938.0,0.0958]
[1644255360475,0.01936595,43939.0,43938.0,0.420091]
[1644255360675,0.01936595,43939.0,43938.0,0.365091]
[1644255360875,0.28227887,43939.0,43938.0,0.365091]
[1644255361078,0.08902359,43945.0,43939.0,0.55]
[1644255361282,0.08902359,43945.0,43941.0,0.02172544]
[1644255361477,0.13902359,43945.0,43941.0,0.02172544]
[1644255361675,0.13895931,43945.0,43941.0,0.02172544]
[1644255361977,0.27265226,43942.0,43941.0,0.02172544]
[1644255362275,0.59694326,43942.0,43941.0,0.02245321]
[1644255363174,0.64694326,43942.0,43941.0,0.02245321]
[1644255363375,0.64694326,43942.0,43941.0,0.02172544]
[1644255363623,0.05,43942.0,43941.0,0.02172544]
[1644255364123,0.05,43944.0,43941.0,0.02172544]
[1644255364323,0.324291,43944.0,43941.0,0.02172544]
[1644255365123,0.19594559,43945.0,43941.0,0.02172544]
[1644255365724,0.324318,43944.0,43941.0,0.02172544]
[1644255365923,0.19594559,43945.0,43941.0,0.02172544]
[1644255365924,0.19594559,43945.0,43943.0,0.05]
[1644255366126,0.324318,43944.0,43941.0,0.0227153]
[1644255366326,0.324318,43943.0,43941.0,0.02245321]
[1644255366526,0.13902359,43945.0,43941.0,0.02216423]
[1644255366725,0.324318,43944.0,43941.0,0.02216423]
[1644255366926,0.324318,43944.0,43940.0,0.23946301]
[1644255367125,0.324318,43944.0,43941.0,0.00072777]
[1644255367777,0.056916,43948.0,43941.0,0.00072777]
[1644255367979,0.556917,43952.0,43947.0,0.05]
[1644255367980,0.5,43952.0,43947.0,0.05]
[1644255368179,0.5,43952.0,43942.0,0.0458]
[1644255368180,0.5,43952.0,43950.0,0.05]
[1644255368776,0.02179302,43953.0,43950.0,0.48664505]
[1644255368976,0.01905572,43957.0,43950.0,0.48664505]
[1644255369178,0.01905572,43957.0,43956.0,0.05]
[1644255369375,0.01905572,43957.0,43956.0,0.0958]
[1644255370876,0.23,43957.0,43956.0,0.0958]
[1644255371324,0.31310871,43957.0,43956.0,0.0958]
[1644255372724,0.23,43957.0,43956.0,0.0958]
[1644255375078,0.31085413,43957.0,43956.0,0.0458]
[1644255376774,0.23,43957.0,43956.0,0.0458]
[1644255376976,0.23,43957.0,43956.0,0.04393804]
[1644255377775,0.23,43957.0,43951.0,0.0458]
[1644255377776,0.604318,43957.0,43951.0,0.0458]
[1644255377975,0.12379771,43956.0,43954.0,0.00072703]
[1644255378175,0.324318,43955.0,43954.0,0.00072703]
[1644255378627,0.17379771,43956.0,43954.0,0.00072703]
[1644255378824,0.12379771,43956.0,43954.0,0.00072703]
[1644255379025,0.17379771,43956.0,43947.0,0.04099051]
[1644255379226,0.27777148,43954.0,43953.0,0.00072704]
[1644255380225,0.27777148,43954.0,43950.0,0.05]
[1644255380428,0.27777148,43954.0,43951.0,0.00072706]
[1644255381429,0.27777148,43954.0,43947.0,0.04099051]
[1644255381628,0.05,43954.0,43953.0,0.05]
[1644255381832,0.23,43957.0,43953.0,0.05]
[1644255382035,0.23,43957.0,43956.0,0.05]
[1644255382674,0.22972609,43957.0,43956.0,0.05]
[1644255386325,0.55404409,43957.0,43956.0,0.05]
[1644255387124,0.78791939,43957.0,43956.0,0.05]
[1644255387324,0.78791939,43957.0,43954.0,0.00072703]
[1644255387325,1.08596486,43957.0,43954.0,0.00072703]
[1644255387528,1.08596486,43957.0,43947.0,0.06980691]
[1644255387529,0.08558027,43948.0,43947.0,0.01980691]
[1644255387728,0.1179,43956.0,43947.0,0.01980691]
[1644255387926,0.05,43954.0,43947.0,0.01980691]
[1644255388125,0.324318,43953.0,43947.0,0.01980691]
[1644255388526,0.28058089,43953.0,43947.0,0.01980691]
[1644255388927,0.28058089,43953.0,43948.0,0.00053723]
[1644255389527,0.324318,43952.0,43948.0,0.00053723]
[1644255389778,0.324318,43952.0,43950.0,0.05]
[1644255389779,0.374318,43952.0,43950.0,0.05]
[1644255390073,0.05,43952.0,43950.0,0.05]
[1644255390273,0.07311619,43951.0,43950.0,0.05]
[1644255390476,0.07311619,43951.0,43948.0,0.00072679]
[1644255390477,0.07269046,43951.0,43948.0,0.00072679]
[1644255391073,0.07269046,43951.0,43946.0,0.05]
[1644255391273,0.12269046,43951.0,43947.0,0.0007268]
[1644255391472,0.324318,43950.0,43947.0,0.0007268]
[1644255391874,0.374318,43950.0,43947.0,0.0007268]
[1644255392076,0.324318,43949.0,43947.0,0.0007268]
[1644255392275,0.05,43950.0,43946.0,0.05]
[1644255392475,0.05,43951.0,43946.0,0.05072681]
[1644255392674,0.53749289,43953.0,43946.0,0.05072681]
[1644255392875,0.324296,43952.0,43946.0,0.05072681]
[1644255393075,0.324296,43952.0,43946.0,0.00072681]
[1644255393275,0.474296,43952.0,43946.0,0.00072681]
[1644255393524,0.15,43952.0,43945.0,0.29582879]
[1644255393822,0.12769067,43948.0,43947.0,0.00053724]
[1644255394025,0.45198667,43948.0,43947.0,0.00053724]
[1644255394622,0.45198667,43948.0,43939.0,0.00026209]
[1644255394824,0.45198667,43948.0,43938.0,0.08836515]
[1644255394825,0.08440481,43941.0,43938.0,0.08836515]
[1644255395023,0.26597363,43944.0,43939.0,0.324296]
[1644255395224,0.26597363,43944.0,43939.0,0.00026209]
[1644255395424,0.26597363,43944.0,43938.0,0.06834797]
[1644255395624,0.056922,43945.0,43943.0,0.05]
[1644255395824,0.05,43948.0,43943.0,0.05]
[1644255396023,0.06941028,43946.0,43943.0,0.05]
[1644255396624,0.30544074,43950.0,43943.0,0.05]
[1644255396828,0.35786207,43948.0,43943.0,0.05]
[1644255397024,0.40786207,43948.0,43943.0,0.05]
[1644255397277,0.40786207,43948.0,43944.0,0.00072652]
[1644255397872,0.47144705,43948.0,43944.0,0.00072652]
[1644255398272,0.47144705,43948.0,43943.0,0.05026209]
[1644255398472,0.47144705,43948.0,43944.0,0.00072653]
[1644255398673,0.05,43948.0,43944.0,0.00072653]
[1644255398873,0.106916,43950.0,43944.0,0.00072653]
[1644255399476,0.106916,43950.0,43943.0,0.05]
[1644255399674,0.342814,43946.0,43945.0,0.00072651]
[1644255400674,0.342814,43946.0,43943.0,0.05]
[1644255400875,0.34254019,43946.0,43943.0,0.05072653]
[1644255401923,0.34254019,43946.0,43943.0,0.05]
[1644255402723,0.27584488,43945.0,43943.0,0.05]
[1644255404779,0.21892488,43945.0,43943.0,0.05]
[1644255405974,0.57254019,43946.0,43943.0,0.05]
[1644255406173,0.62254019,43946.0,43943.0,0.05]
[1644255407376,0.62254019,43946.0,43943.0,0.049]
[1644255411928,0.62254019,43946.0,43944.0,0.049]
[1644255413180,0.001,43945.0,43944.0,0.049]
[1644255413581,0.62254019,43946.0,43944.0,0.049]
[1644255414183,0.57254019,43946.0,43944.0,0.049]
[1644255415784,0.001,43945.0,43944.0,0.049]
[1644255416225,0.57254019,43946.0,43944.0,0.049]
[1644255416727,0.62254019,43946.0,43944.0,0.049]
[1644255418232,0.0147,43945.0,43944.0,0.0353]
[1644255418430,0.020575,43945.0,43944.0,0.029425]
[1644255418630,0.025575,43945.0,43944.0,0.024425]
[1644255419876,0.62226631,43946.0,43944.0,0.024425]
[1644255421579,0.025575,43945.0,43944.0,0.024425]
[1644255422178,0.57254019,43946.0,43944.0,0.024425]
[1644255422477,0.025575,43945.0,43944.0,0.024425]
[1644255423825,0.05263323,43946.0,43944.0,0.024425]
[1644255425928,0.05263323,43946.0,43945.0,0.21290419]
[1644255426328,0.52071397,43954.0,43945.0,0.50505969]
[1644255426529,0.52071397,43954.0,43953.0,0.024425]
[1644255426730,0.02071397,43954.0,43953.0,0.070225]
[1644255426928,0.02071397,43954.0,43953.0,0.394521]
[1644255427128,0.02108683,43955.0,43953.0,0.394521]
[1644255427384,0.02108683,43955.0,43954.0,0.348721]
[1644255427583,0.02108683,43955.0,43954.0,0.394521]
[1644255428087,0.02077114,43955.0,43954.0,0.394521]
[1644255428883,0.02077114,43955.0,43954.0,0.370096]
[1644255429084,0.08307539,43959.0,43954.0,0.370096]
[1644255429283,0.08307539,43959.0,43954.0,0.0458]
[1644255429683,0.08307539,43959.0,43954.0,0.04651616]
[1644255429883,0.025575,43960.0,43954.0,0.04651616]
[1644255430284,0.025575,43960.0,43954.0,0.26635234]
[1644255430685,0.025575,43960.0,43954.0,0.26563618]
[1644255430883,0.025575,43960.0,43954.0,0.26635234]
[1644255431828,0.025575,43960.0,43954.0,0.26563618]
[1644255432129,0.025575,43960.0,43957.0,0.024425]
[1644255434430,0.030575,43960.0,43957.0,0.019425]
[1644255435304,0.29415154,43961.0,43957.0,0.019425]
[1644255435904,0.23,43960.0,43957.0,0.019425]
[1644255437607,0.23,43960.0,43958.0,0.0458]
[1644255438106,0.22972612,43960.0,43958.0,0.0458]
[1644255442131,0.22972612,43960.0,43954.0,0.00072663]
[1644255442132,0.030575,43959.0,43954.0,0.00072663]
[1644255442397,0.22972612,43960.0,43954.0,0.00072663]
[1644255442398,0.038296,43955.0,43954.0,0.00072663]
[1644255442791,0.07093069,43951.0,43949.0,0.01873281]
[1644255442987,0.030575,43953.0,43952.0,0.00072664]
[1644255443389,0.354871,43953.0,43952.0,0.00072664]
[1644255443587,0.404871,43953.0,43952.0,0.00072664]
[1644255443990,0.47799961,43953.0,43945.0,0.03801275]
[1644255444187,0.12312861,43953.0,43950.0,0.00072666]
[1644255444389,0.77920441,43952.0,43950.0,0.00072666]
[1644255444788,0.064636,43951.0,43950.0,0.00072666]
[1644255444987,0.038296,43951.0,43950.0,0.00072666]
[1644255445287,0.056916,43950.0,43948.0,0.00070061]
[1644255446347,0.056916,43950.0,43942.0,0.019425]
[1644255446552,0.12791715,43946.0,43943.0,0.324296]
[1644255446847,0.056915,43946.0,43943.0,0.324296]
[1644255447848,0.030575,43945.0,43943.0,0.324296]
[1644255448050,0.07603033,43944.0,43943.0,0.324296]
[1644255448449,0.030575,43945.0,43942.0,0.02012568]
[1644255448648,0.27911692,43945.0,43942.0,0.02012568]
[1644255448949,0.27911692,43945.0,43942.0,0.019425]
[1644255449447,0.26997792,43945.0,43942.0,0.028564]
[1644255449649,0.24854192,43945.0,43942.0,0.028564]
[1644255451384,0.26997792,43945.0,43942.0,0.028564]
[1644255451585,0.24854192,43945.0,43942.0,0.028564]
[1644255451786,0.26997792,43945.0,43942.0,0.028564]
[1644255451986,0.021436,43945.0,43942.0,0.028564]
[1644255452385,0.35277382,43946.0,43942.0,0.05]
[1644255452987,0.26550108,43944.0,43942.0,0.05]
[1644255454231,0.26664726,43944.0,43942.0,0.05]
[1644255454433,0.00114618,43944.0,43942.0,0.05]
[1644255457787,0.23114618,43944.0,43942.0,0.05]
[1644255458985,0.23114618,43944.0,43941.0,0.00067872]
[1644255459188,0.324296,43943.0,43941.0,0.00067872]
[1644255459390,0.424296,43943.0,43941.0,0.00067872]
[1644255459588,0.0871987,43942.0,43934.0,0.00026209]
[1644255459785,0.0871987,43942.0,43933.0,0.01899884]
[1644255459786,0.1871987,43942.0,43933.0,0.01899884]
[1644255459986,0.72076654,43939.0,43933.0,0.01899884]
[1644255460185,0.0852023,43935.0,43933.0,0.01899884]
[1644255461235,0.72076654,43939.0,43932.0,0.00090644]
[1644255461236,0.50461251,43939.0,43932.0,0.00090644]
[1644255461435,0.30485611,43938.0,43932.0,0.00090644]
[1644255462034,0.30485611,43938.0,43932.0,0.00026209]
[1644255462238,0.05693,43935.0,43933.0,0.00064433]
[1644255463236,0.05693,43935.0,43932.0,0.00026209]
[1644255463438,0.056926,43937.0,43932.0,0.00049225]
[1644255463737,0.106926,43937.0,43932.0,0.00075434]
[1644255464342,0.001328,43938.0,43936.0,0.05]
[1644255464644,0.001328,43938.0,43937.0,0.62389682]
[1644255464891,0.001328,43938.0,43937.0,0.66969682]
[1644255465289,0.001328,43938.0,43937.0,0.87049209]
[1644255466492,0.001328,43938.0,43937.0,0.88570403]
[1644255466692,0.001328,43938.0,43937.0,1.59984641]
[1644255466992,0.01963725,43947.0,43940.0,0.056896]
[1644255467190,0.01963725,43947.0,43946.0,0.59404024]
[1644255467392,0.01963725,43947.0,43946.0,0.63984024]
[1644255467989,0.01963725,43947.0,43946.0,0.31554424]
[1644255467990,0.02010931,43947.0,43946.0,0.31554424]
[1644255468291,0.02010931,43947.0,43946.0,0.5599286]
[1644255469234,0.25010931,43947.0,43946.0,0.6599286]
[1644255469534,0.23,43947.0,43946.0,0.6599286]
[1644255469939,0.23,43947.0,43946.0,0.5599286]
[1644255471737,0.23,43947.0,43946.0,0.8329253]
[1644255471936,0.23,43947.0,43946.0,0.5599286]
[1644255474985,0.21370991,43947.0,43946.0,0.5599286]
[1644255477335,0.21370991,43947.0,43946.0,0.370096]
[1644255477336,0.26370991,43947.0,43946.0,0.370096]
[1644255477539,0.26370991,43947.0,43946.0,0.0458]
[1644255478335,0.21370991,43947.0,43946.0,0.0458]
[1644255479536,0.21342991,43947.0,43946.0,0.0458]
[1644255481187,0.3030224,43947.0,43946.0,0.0458]
[1644255481392,0.3030224,43947.0,43938.0,0.00026585]
[1644255481393,0.6273184,43947.0,43938.0,0.00026585]
[1644255481589,0.6273184,43947.0,43944.0,0.00067822]
[1644255481590,0.056923,43945.0,43944.0,0.00067822]
[1644255481790,0.674296,43945.0,43944.0,0.00067822]
[1644255482188,0.70832612,43945.0,43944.0,0.00067822]
[1644255482589,1.1562418,43945.0,43938.0,0.00026585]